[Event "Polish Youth B18 Championship 2023"]
[Site "Jastrzebia Gora"]
[Date "2023.03.19"]
[Round "9.6"]
[White "Taranowicz, Michal"]
[Black "Turski, Bartlomiej"]
[Result "0-1"]
[ECO "B40"]
[WhiteElo "1900"]
[BlackElo "2352"]
[Annotator "TA"]
[PlyCount "136"]
[EventDate "2023.03.11"]
[EventType "swiss"]
[EventCountry "POL"]
[SourceTitle "playchess.com"]
[Source "ChessBase"]
[SourceQuality "1"]
[TimeControl "40/5400+30:1800+30"]

{[%evp 12,136,12,8,29,0,0,-10,20,20,10,16,20,22,24,0,0,-8,-14,-24,-20,-25,-29,-47,0,0,0,0,0,-63,-63,-70,-72,-120,-125,-577,-115,-102,-68,-99,-71,-68,-64,-65,0,-43,0,0,0,-54,0,0,322,333,304,272,329,234,225,229,212,209,208,203,538,400,354,229,210,197,216,222,219,227,334,315,316,195,214,183,222,117,324,313,311,313,347,270,291,96,97,85,309,0,0,0,0,0,0,0,0,0,0,0,0,0,0,-726,-702,-1191,-1191,-1118,-1109,-896,-850,-29967,-29968,-29955,-29961,-29982,-8670,-6566,-5636,-1992,-1937,-1590,-1210]} 1. e4 {[%emt 0:02:51]} c5 {[%emt 0:00:07]} 2. Nf3 {[%emt 0:00:05]} e6 {[%emt 0:00:05]} 3. d3 {[%emt 0:00:09]} Nc6 {[%emt 0:00:22]} 4. g3 {[%emt 0:00:04]} d6 {[%emt 0:02:52]} 5. Bg2 {[%emt 0:00:07]} Nf6 {[%emt 0:00:07]} 6. O-O {[%emt 0:00:06]} Be7 {[%emt 0:00:08]} 7. Re1 {[%emt 0:00:12]} e5 {[%emt 0:00:59] B30: Sicilian: 2...Nc6 3 Bb5, lines without ...g6.} 8. h3 {[%emt 0:02:11]} Be6 {[%emt 0:01:36]} 9. c3 {[%emt 0:00:14] [#]} Qb6 $146 {[%emt 0:03:37] The position is equal.} ({Predecessor:} 9... O-O 10. Na3 h6 11. Nc2 Qd7 12. Kh2 Rfe8 13. b3 Bd8 14. Bb2 {½-½ Clair,M (2185)-Pansier,P (2299) Jacques Jaudran mem sf2 corr 2002}) 10. Nbd2 {[%emt 0:03:14]} O-O {[%emt 0:03:46]} 11. Nc4 {[%emt 0:03:42]} Qc7 {[%emt 0:01:56]} 12. Ne3 {[%emt 0:05:49]} d5 {[%emt 0:16:25]} 13. Nf5 {[%emt 0:07:00]} (13. Ng5 $5 {[%cal Re4d5]} d4 14. Nxe6 fxe6 15. Nc4 $11) 13... Bxf5 {[%emt 0:08:33]} 14. exf5 {[%emt 0:00:05]} Rad8 {[%emt 0:01:49]} 15. Qa4 {[%emt 0:05:45]} Rfe8 {[%emt 0:06:28]} 16. g4 {[%emt 0:00:09]} h6 {[%emt 0:10:38]} 17. Be3 {[%emt 0:08:35] [#]} b5 {[%emt 0:03:43]} 18. Qxb5 $11 {[%emt 0:04:41]} Rb8 {[%emt 0:00:46]} 19. Qa4 {[%emt 0:01:01]} Rxb2 {[%emt 0:00:47]} 20. h4 {[%emt 0:06:57]} (20. Nd2 $11) 20... e4 $1 $15 {[%emt 0:07:31]} 21. dxe4 {[%emt 0:00:06]} dxe4 {[%emt 0:01:42]} 22. Nd2 {[%emt 0:08:21]} (22. g5 $142 exf3 23. gxf6 fxg2 24. Bc1 Rxf2 25. Qg4 (25. Kxf2 $2 Qh2 $19)) 22... Nxg4 $17 {[%emt 0:10:26]} 23. Nxe4 $2 {[%emt 0:02:31][%mdl 8192]} (23. Qxe4 $17 Qh2+ 24. Kf1) 23... Bxh4 $2 {[%emt 0:10:42]} (23... Qh2+ $1 $19 24. Kf1 Bxh4) 24. Nf6+ {[%emt 0:08:48]} Bxf6 {[%emt 0:01:26]} 25. Qxg4 {[%emt 0:01:02]} Ne5 {[%emt 0:01:29] Black is more active.} 26. Qg3 {[%emt 0:00:33]} Kh8 {[%emt 0:01:42]} (26... Kh7 {seems wilder.} 27. Bf4 c4 28. Re3 Rd2) 27. Bf4 {[%emt 0:04:53]} Rbb8 {[%emt 0:02:27]} (27... c4 $15) 28. Re3 {[%emt 0:04:09]} Re7 {[%emt 0:00:35]} 29. Rae1 {[%emt 0:00:07][%cal Rf4e5]} Rbe8 {[%emt 0:00:09]} 30. Bf1 {[%emt 0:00:29]} (30. c4 $11) 30... Kh7 {[%emt 0:01:52]} (30... c4 $15) 31. Bb5 {[%emt 0:00:58]} Rb8 {[%emt 0:00:42][%mdl 8192] Black is weak on the light squares} (31... Qb7 $1 $11 {and Black is okay.} 32. Bxe5 (32. Bxe8 Nf3+ {[%mdl 64] Pin, Double Attack} 33. Kf1 Nd2+ 34. Kg1 Nf3+ {[%mdl 64] Pin, Double Attack} 35. Kf1 Nd2+ 36. Kg1 Nf3+ $11 {[%mdl 64] Pin, Double Attack}) 32... Bxe5 33. Bxe8 Bxg3 34. Rxe7 Qf3 35. fxg3 Qxg3+ 36. Kf1 Qf3+ 37. Kg1 Qg3+ 38. Kh1 Qh3+ 39. Kg1 Qg3+) 32. a4 $18 {[%emt 0:02:10][%cal Ba2a4,Ba4a5][%mdl 32]} (32. Bxe5 Bxe5 33. Rxe5 Rxe5 34. Qxe5 Qxe5 35. Rxe5 Rxb5 $17) (32. Ba4 Qa5 $18) 32... a6 {[%emt 0:00:15]} 33. Bxa6 {[%emt 0:00:11] A strong pair of Bishops.} ({Weaker is} 33. Bxe5 Bxe5 34. Rxe5 Rxe5 35. Qxe5 Qxe5 36. Rxe5 axb5 37. axb5 Rxb5 $11) 33... Qc6 {[%emt 0:00:40] And now ...Nf3+ would win.} 34. Bxe5 {[%emt 0:01:16]} ({Worse is} 34. Rxe5 Bxe5 35. Bxe5 f6 $11) 34... Rxe5 {[%emt 0:00:13]} 35. Rxe5 {[%emt 0:00:52]} Qxa6 {[%emt 0:00:02]} 36. Rxc5 {[%emt 0:00:43]} Rd8 {[%emt 0:00:18]} 37. a5 {[%emt 0:00:58]} Qb7 {[%emt 0:00:20]} (37... Rd2 {is more resistant.} 38. Qb8 Bd8) 38. Qg2 {[%emt 0:02:35]} Qb2 {[%emt 0:00:42]} 39. Qf3 {[%emt 0:01:31]} Qa3 {[%emt 0:00:26]} 40. Qc6 {[%emt 0:00:00]} Qa2 {[%emt 0:00:00]} 41. Qe4 {[%emt 0:17:43] Prevents Rd3} Rd2 {[%emt 0:02:18]} 42. Rf1 {[%emt 0:00:06]} Rd8 {[%emt 0:04:21]} (42... Rd7 $142 43. Qc4 Qd2) 43. Kg2 {[%emt 0:04:46]} Qd2 {[%emt 0:01:52]} 44. Qe3 {[%emt 0:00:18]} Qa2 {[%emt 0:00:08]} 45. Rh1 {[%emt 0:03:35]} Qa4 {[%emt 0:01:17]} 46. Re1 {[%emt 0:01:38]} (46. Qe2 $18) 46... Qg4+ $2 {[%emt 0:03:18]} (46... Be7 $16) 47. Qg3 {[%emt 0:00:06]} Qa4 {[%emt 0:00:11]} 48. Qf3 {[%emt 0:01:47] Inhibits Ra8.} Qa2 {[%emt 0:01:43]} 49. c4 {[%emt 0:01:59]} Rd2 {[%emt 0:01:44] Hoping for ...Bd4.} 50. Rd5 {[%emt 0:01:25]} (50. Rd1 $18 {has better winning chances. Rxd2 would be deadly.} Rc2 51. Rc6) 50... Rc2 $16 {[%emt 0:00:46]} 51. Re4 {[%emt 0:02:14] Strongly threatening Rd7.} Rc1 $2 {[%emt 0:03:06]} (51... Qa1 $16) 52. Rc5 $2 {[%emt 0:02:17]} (52. Rd1 $1 $18 {[%cal Rd1c1]} Rc3 53. Rd3) 52... Qb1 $11 {[%emt 0:02:22] The board is on fire.} (52... Qa1 $5 53. Kh2 $8 Rc3 $11) 53. Kh2 {[%emt 0:01:27] Wards off Rh1+} Qb8+ {[%emt 0:00:50]} 54. Qg3 {[%emt 0:00:17]} Qb1 {[%emt 0:00:32]} 55. Qg2 {[%emt 0:00:42] Re8 is the strong threat.} Qb8+ {[%emt 0:00:40]} 56. Kh3 {[%emt 0:01:03]} Qb1 {[%emt 0:01:10]} 57. Kh2 {[%emt 0:04:10] Against Rh1+. Threatens to win with Re8.} Qb8+ {[%emt 0:00:11]} 58. f4 {[%emt 0:03:31]} Bg5 {[%emt 0:04:59]} 59. Qf2 {[%emt 0:02:08][%mdl 8192] [#]} (59. Qf3 $11) 59... Qb1 $1 $19 {[%emt 0:01:43]} 60. Rce5 {[%emt 0:02:21] [#]} Rh1+ $1 {[%emt 0:03:13]} 61. Kg2 {[%emt 0:00:06]} Bh4 {[%emt 0:00:38]} 62. Re1 {[%emt 0:01:33]} Qb7+ {[%emt 0:00:26]} (62... Rxe1 $2 63. Rxe1 Qb7+ 64. Qf3 $18) 63. Qf3 {[%emt 0:00:06]} Rh2+ $1 {[%emt 0:00:10][%mdl 64] Deflection} ({Don't do} 63... Bxe1 64. Qxb7 Rh4 65. Rxe1 Rg4+ 66. Kf3 Rh4 67. Qxf7 Rh3+ 68. Kg4) 64. Kxh2 {[%emt 0:00:18]} Qxf3 {[%emt 0:00:02]} 65. R1e2 {[%emt 0:00:14]} Qxf4+ {[%emt 0:01:14]} (65... Bf2 $142 66. Rxf2 Qxf2+ 67. Kh3 Qf3+ 68. Kh2 Qxf4+ 69. Kg1 Qxe5 70. a6 Qe1+ 71. Kh2 Qf2+ 72. Kh1 h5 73. c5 h4 74. a7 Qa2 75. Kg1 h3 76. a8=Q Qxa8 77. Kf2 h2 78. c6 Qxc6 79. Kg3 h1=Q 80. Kg4 Qcf3+ 81. Kg5 Qh6#) 66. Kg2 {[%emt 0:00:09] Black is clearly winning.} Qg4+ {[%emt 0:00:25]} 67. Kh1 {[%emt 0:00:28]} Qf3+ {[%emt 0:00:49]} 68. Kg1 {[%emt 0:00:05] [#]} Bf2+ $1 {[%emt 0:00:31][%mdl 576] Decoy. What a fight! A cool game by Turski.   Weighted Error Value: White=0.57/Black=0.41} 0-1

[Event "Polish Youth B18 Championship 2023"]
[Site "Jastrzebia Gora"]
[Date "2023.03.19"]
[Round "9.7"]
[White "Luberanski, Jakub"]
[Black "Czernek, Tymon"]
[Result "0-1"]
[ECO "A05"]
[WhiteElo "2242"]
[BlackElo "2314"]
[Annotator "TA"]
[PlyCount "60"]
[EventDate "2023.03.11"]
[EventType "swiss"]
[EventCountry "POL"]
[SourceTitle "playchess.com"]
[Source "ChessBase"]
[SourceQuality "1"]
[TimeControl "40/5400+30:1800+30"]

{[%evp 19,60,-16,-13,-40,-35,-23,-24,-28,-35,-43,-22,-25,-29,-37,-38,-20,-38,-41,-33,-17,-10,-47,-38,-48,-48,-46,0,-82,-82,-84,-81,-83,0,-59,0,-79,-44,-383,-400,-391,-388,-845,-833]} 1. Nf3 {[%emt 0:00:02]} Nf6 {[%emt 0:00:12]} 2. b3 {[%emt 0:00:03]} g6 {[%emt 0:02:51]} 3. Bb2 {[%emt 0:00:04]} Bg7 {[%emt 0:00:05]} 4. g3 {[%emt 0:00:06]} b6 {[%emt 0:00:52]} 5. Bg2 {[%emt 0:00:05]} Bb7 {[%emt 0:00:03]} 6. O-O {[%emt 0:00:06]} O-O {[%emt 0:00:03]} 7. c4 {[%emt 0:00:10]} c5 {[%emt 0:01:03]} 8. d4 {[%emt 0:02:46]} cxd4 {[%emt 0:01:30]} 9. Nxd4 {[%emt 0:05:15]} Bxg2 {[%emt 0:00:22]} 10. Kxg2 {[%emt 0:00:04]} d5 {[%emt 0:02:23]} 11. cxd5 {[%emt 0:00:59] A30: Symmetrical English: Double Fianchetto and Hedgehog.} Qxd5+ {[%emt 0:04:44]} 12. Nf3 {[%emt 0:03:07]} Qb7 {[%emt 0:00:05]} 13. Nbd2 {[%emt 0:00:28][%cal Bb1d2,Bd2c4,Bc4e5][%mdl 32] Black has an edge.} Rd8 {[%emt 0:00:59] [#] And now ...Ne4 would win.} 14. Qc2 {[%emt 0:01:18] [#] Prevents Ne4.} Nc6 $146 {[%emt 0:01:57] Strongly threatening ...Nb4.} (14... Na6 $5 {[%cal Ra8c8]} 15. Rad1 Rac8 $11) ({Predecessor:} 14... Na6 15. Rac1 Nb4 16. Qb1 Rxd2 17. Bc3 Rxe2 18. Bxb4 Nd5 19. Qd3 Ne3+ 20. Qxe3 Rxe3 21. fxe3 {0-1 Drazic,S (2473)-Kuljasevic,D (2577) Split op 3rd 2013 (6)}) 15. Rad1 {[%emt 0:07:02]} Rac8 {[%emt 0:03:28]} 16. Qb1 {[%emt 0:00:40]} Nd4 {[%emt 0:01:39]} 17. Bxd4 {[%emt 0:01:14]} Rxd4 {[%emt 0:00:01]} 18. Nc4 {[%emt 0:00:28]} Rxd1 {[%emt 0:07:54]} 19. Rxd1 {[%emt 0:00:47]} b5 {[%emt 0:00:21]} 20. Nce5 {[%emt 0:04:54]} (20. Na5 $5 {[%cal Ra5b7]} Qb6 21. b4 $11) 20... Nd5 {[%emt 0:02:57]} 21. Qe4 {[%emt 0:01:02]} e6 {[%emt 0:00:19]} 22. Nd3 {[%emt 0:13:38]} Qe7 {[%emt 0:11:29] Against Nb4} (22... Qd7 $15 23. Rd2 f5) 23. Rd2 {[%emt 0:08:39]} (23. Nf4 $1 $11 Nc3 24. Nd5 Nxd5 25. Rxd5) 23... f5 $17 {[%emt 0:06:22]} 24. Qh4 {[%emt 0:00:09]} Bf6 $36 {[%emt 0:00:26][%mdl 2048] Black is on the roll. Black is more active.} 25. Qh6 {[%emt 0:02:21]} Bg7 {[%emt 0:13:10]} 26. Qh4 {[%emt 0:01:44]} Bf6 {[%emt 0:00:25]} 27. Qh6 {[%emt 0:00:04]} a5 {[%emt 0:05:05]} 28. h4 $2 {[%emt 0:05:33][%mdl 8192]} (28. Nf4 $15) 28... Bg7 $19 {[%emt 0:01:42]} 29. Qg5 {[%emt 0:00:06] [#]} Qf8 {[%emt 0:00:11]} 30. h5 $2 {[%emt 0:03:03]} (30. Nf4 Bf6 31. Nxe6 Bxg5 32. Rxd5) 30... Bf6 {[%emt 0:00:24][%mdl 64] Trapped Piece.   Weighted Error Value: White=0.52/Black=0.12 (very precise)} 0-1

[Event "Polish Youth B18 Championship 2023"]
[Site "Jastrzebia Gora"]
[Date "2023.03.19"]
[Round "9.8"]
[White "Zdybel, Przemyslaw"]
[Black "Madajczak, Piotr"]
[Result "1-0"]
[ECO "E44"]
[WhiteElo "2268"]
[BlackElo "1897"]
[Annotator "TA"]
[PlyCount "79"]
[EventDate "2023.03.11"]
[EventType "swiss"]
[EventCountry "POL"]
[SourceTitle "playchess.com"]
[Source "ChessBase"]
[SourceQuality "1"]
[TimeControl "40/5400+30:1800+30"]

{[%evp 12,79,41,34,41,44,47,51,54,56,54,51,71,61,62,64,64,57,62,62,53,54,75,49,73,49,85,0,29,4,104,5,110,109,118,108,108,109,132,112,142,138,143,146,161,168,196,56,252,252,261,237,304,318,313,299,608,446,427,445,440,409,427,356,1316,1298,1274,1221,29987,29988]} 1. d4 {[%emt 0:00:43]} Nf6 {[%emt 0:00:18]} 2. c4 {[%emt 0:00:14]} e6 {[%emt 0:00:05]} 3. Nc3 {[%emt 0:01:15]} Bb4 {[%emt 0:00:11]} 4. e3 {[%emt 0:00:38][%cal Be2e3,Be3e4][%mdl 32]} b6 {[%emt 0:03:39]} 5. Nge2 {[%emt 0:08:53]} O-O {[%emt 0:03:46]} 6. a3 {[%emt 0:02:46]} Be7 {[%emt 0:00:48]} 7. e4 {[%emt 0:01:43]} d6 {[%emt 0:12:30] E44: Nimzo-Indian: Rubinstein: 4...b6 5 Ne2.} 8. g3 {[%emt 0:02:37]} Bb7 {[%emt 0:02:12]} 9. Bg2 {[%emt 0:00:09]} Nbd7 {[%emt 0:15:49] White is slightly better.} 10. O-O {[%emt 0:00:30][%cal Oe4e5]} e5 {[%emt 0:00:58]} 11. d5 {[%emt 0:02:03]} Ne8 {[%emt 0:00:42]} 12. b4 {[%emt 0:09:33]} a5 {[%emt 0:00:57]} 13. Rb1 {[%emt 0:00:08] [#]} Bg5 $146 {[%emt 0:09:13]} ({Predecessor:} 13... f5 14. exf5 Rxf5 15. Ne4 Rf8 16. f4 h6 17. Bb2 Nef6 18. fxe5 Nxe5 19. Bxe5 dxe5 {1-0 Romanchuk,V (2258)-Siniauski,A (2275) Titled Tuesday intern op 12th Jan blitz 2021 (8)}) 14. f4 {[%emt 0:02:59]} Bh6 {[%emt 0:01:57]} 15. Bb2 {[%emt 0:09:52]} Nef6 {[%emt 0:01:34]} 16. Qd3 {[%emt 0:05:26]} Re8 {[%emt 0:01:28]} 17. Nd1 {[%emt 0:12:26]} g6 {[%emt 0:06:11]} 18. Nf2 {[%emt 0:02:10]} Bg7 {[%emt 0:00:19]} 19. Bc1 {[%emt 0:07:59]} (19. f5 $1 $16) 19... Qe7 {[%emt 0:04:38]} 20. Nc3 {[%emt 0:01:32]} Rec8 {[%emt 0:05:49]} (20... exf4 $11 {keeps the balance.} 21. gxf4 axb4 22. axb4 Nh5) 21. Bh3 {[%emt 0:01:26]} (21. f5 $1 $16) 21... Re8 {[%emt 0:02:08] [#]} (21... axb4 $11 {remains equal.} 22. axb4 exf4) 22. f5 $1 $16 {[%emt 0:03:33]} h6 {[%emt 0:01:02]} 23. fxg6 {[%emt 0:02:41]} fxg6 {[%emt 0:00:09]} 24. Nb5 {[%emt 0:02:45]} Nf8 {[%emt 0:00:43]} 25. Be3 {[%emt 0:00:16]} Bc8 {[%emt 0:01:10]} 26. Bxc8 {[%emt 0:00:47]} Rexc8 {[%emt 0:00:11] [#]} 27. c5 $1 {[%emt 0:00:43][%mdl 512] White has more active pieces. The black rooks are badly placed.} bxc5 {[%emt 0:01:20]} (27... axb4 28. cxb6) 28. bxc5 {[%emt 0:00:08]} dxc5 {[%emt 0:01:09]} 29. Qc4 {[%emt 0:01:30]} (29. Rbc1 $18) 29... Kh7 $2 {[%emt 0:01:24] This move loses the game for Black.} ({Better is} 29... c6 $1 $14) 30. Bxc5 {[%emt 0:01:13]} ({But not} 30. Qxc5 $6 Qxc5 31. Bxc5 N8d7 $16) 30... Qd7 {[%emt 0:00:17] [#]} 31. Na7 {[%emt 0:00:34][%cal Bb5a7,Ba7c6,Bc6e5,Be5d3,Bd3f2][%mdl 32]} Rcb8 {[%emt 0:00:30]} 32. Rxb8 {[%emt 0:01:36]} ({Not} 32. Nc6 Rxb1 33. Rxb1 Qe8 $16) 32... Rxb8 {[%emt 0:00:01]} 33. Nc6 {[%emt 0:00:01]} Rb2 {[%emt 0:03:57]} (33... Re8 34. a4 Qc8 35. Nxa5 N8d7) 34. Nxe5 {[%emt 0:00:42]} Qb5 {[%emt 0:00:20]} 35. Bxf8 {[%emt 0:00:47]} Bxf8 {[%emt 0:00:38]} 36. Qxc7+ {[%emt 0:00:05]} Bg7 {[%emt 0:00:03]} 37. Qf7 {[%emt 0:01:14]} Qc5 $2 {[%emt 0:04:01]} (37... Qe8) 38. Qxg6+ $18 {[%emt 0:01:01]} Kg8 {[%emt 0:00:02]} 39. Ned3 {[%emt 0:00:57][%csl LRb2,LRc5]} Qxf2+ {[%emt 0:01:51]} 40. Nxf2 {[%emt 0:00:00] Excellently played by Zdybel!   Weighted Error Value: White=0.30/Black=0.64} 1-0

[Event "Polish Youth B18 Championship 2023"]
[Site "Jastrzebia Gora"]
[Date "2023.03.19"]
[Round "9.9"]
[White "Wojdak, Jan"]
[Black "Stachecki, Mikolaj"]
[Result "1/2-1/2"]
[ECO "B30"]
[WhiteElo "2097"]
[BlackElo "2015"]
[Annotator "TA"]
[PlyCount "70"]
[EventDate "2023.03.11"]
[EventType "swiss"]
[EventCountry "POL"]
[SourceTitle "playchess.com"]
[Source "ChessBase"]
[SourceQuality "1"]
[TimeControl "40/5400+30:1800+30"]

{[%evp 9,70,-12,-27,-18,83,79,78,27,33,33,41,44,64,46,62,41,78,-44,-57,-62,-86,-81,-8,-79,-60,-89,-7,-41,-31,-37,-43,-76,-49,-103,-22,-22,-22,-23,-22,-55,-53,-60,-51,-100,-22,-122,-79,-165,-146,-368,-354,-416,-318,-308,-245,-225,-101,-114,-91,-92,-70,-55,-54]} 1. e4 {[%emt 0:02:51]} c5 {[%emt 0:00:14]} 2. Nf3 {[%emt 0:00:05]} Nc6 {[%emt 0:00:04]} 3. b4 {[%emt 0:02:02]} cxb4 {[%emt 0:02:23]} 4. d4 {[%emt 0:00:24]} d5 {[%emt 0:01:51]} 5. exd5 {[%emt 0:00:05]} Qxd5 {[%emt 0:00:05]} 6. c4 {[%emt 0:00:04] B30: Sicilian: 2...Nc6 3 Bb5, lines without ...g6.} Qe4+ {[%emt 0:19:20]} (6... bxc3 $11 7. Nxc3 Qa5) 7. Be3 $16 {[%emt 0:02:05]} Bf5 {[%emt 0:04:59]} 8. d5 {[%emt 0:18:00]} (8. Nbd2 $16 Qc2 9. Qxc2 Bxc2 10. d5) 8... Ne5 $11 {[%emt 0:02:36]} 9. Nbd2 {[%emt 0:08:18] [#]} Nxf3+ $146 {[%emt 0:00:29]} ({Predecessor:} 9... Nd3+ 10. Bxd3 Qxd3 11. Qa4+ Bd7 12. Qxd7+ {1-0 Asvang,J (1933)-Kristensen,K (1998) Harstad Advokatfirmaet op 2019 (4)}) 10. Nxf3 {[%emt 0:00:10]} Qc2 {[%emt 0:02:04] Dodges Qa4+} 11. Qd4 {[%emt 0:04:13][%mdl 1024] White has compensation.} Nf6 {[%emt 0:11:17]} 12. c5 {[%emt 0:04:43] aiming for Bb5+.} (12. Rc1 $5 {[%cal Rc1c2]} Qa4 13. Ne5 $14) 12... O-O-O {[%emt 0:09:55] And now ...e5 would win.} 13. d6 {[%emt 0:15:25]} (13. Rc1 $16 Qe4 14. c6 Qxd4 15. Nxd4 Rxd5 16. Bc4) 13... Qc3+ $15 {[%emt 0:04:12]} (13... exd6 14. Rc1 (14. Qxb4 $2 dxc5 15. Qb3 Ng4 $19) 14... dxc5 15. Rxc2 Rxd4 16. Nxd4 Bxc2 17. Nxc2 $14) 14. Bd2 {[%emt 0:01:48]} Qxd4 {[%emt 0:00:06]} 15. Nxd4 {[%emt 0:00:04]} Be4 {[%emt 0:01:39]} ({Better is} 15... Bg6 $17 16. f3 exd6) 16. Rc1 {[%emt 0:03:00]} (16. f3 $1 $11 Bd5 17. Bb5) 16... exd6 $17 {[%emt 0:01:11]} 17. c6 {[%emt 0:00:09]} (17. cxd6+ $2 Kb8 18. f3 Bd5 $17) 17... bxc6 {[%emt 0:01:33]} (17... Re8 $17 18. Kd1 Ng4 19. cxb7+ Kxb7) 18. Nxc6 {[%emt 0:02:48]} (18. f3 $5 {[%cal Rf3e4]} Bd5 19. Nxc6 Bxc6 20. Bb5 $11 (20. Rxc6+ Kb7 $17)) 18... Bxc6 {[%emt 0:00:05]} 19. Bb5 $1 {[%emt 0:00:04] [#]} (19. Rxc6+ Kb7 20. Ra6 (20. Bb5 $2 Re8+ 21. Kd1 Re5 $19) 20... d5 $17) 19... d5 $1 {[%emt 0:04:48][%cal Oc8b7]} 20. Rxc6+ {[%emt 0:04:45]} (20. Bxc6 Kb8) 20... Kb7 {[%emt 0:01:23] Hoping for ...Ne4.} 21. O-O {[%emt 0:02:31]} (21. Ke2 $1 $15) 21... Rd6 {[%emt 0:06:21]} (21... a6 $17 22. Rxa6 (22. Bxa6+ $2 Kxc6 23. Be2 Ne4 $19) 22... Ne4) 22. Rfc1 $11 {[%emt 0:00:45] Ba6+ would kill now.} Rxc6 {[%emt 0:00:09][%mdl 64] Remove Defender} 23. Bxc6+ {[%emt 0:00:28] This pair of bishops is nice.} Ka6 {[%emt 0:00:29]} 24. Be3 {[%emt 0:01:17]} Be7 {[%emt 0:01:34]} 25. Bd4 {[%emt 0:00:40]} Rd8 {[%emt 0:05:30]} (25... Ka5 $5 {[%cal Rh8c8]}) 26. Kf1 {[%emt 0:06:18]} (26. Ba4 $1 $15 {feels stronger.} Ka5 27. Bd1) 26... g6 {[%emt 0:01:10]} ({Black should play} 26... Ne4 $17 {White must now prevent ...Bg5.} 27. Bxg7 Kb6) 27. Ke2 {[%emt 0:00:11]} (27. Ba4 $1 $11 {keeps the balance.} Ka5 28. Bb3) 27... Ne8 {[%emt 0:00:11]} 28. Rb1 {[%emt 0:04:31] [#]} (28. Kd3 $17 Nc7 29. a3) 28... Nc7 $1 $19 {[%emt 0:02:14]} 29. a4 $2 {[%emt 0:01:43]} (29. Ba4 $17) 29... Ne6 {[%emt 0:00:39]} (29... bxa3 $2 30. Bb7+ (30. Rb7 Nb5 $14) 30... Ka5 31. Bc3+ $18 (31. Bxa7 $2 {too greedy.} Nb5 $19) (31. Bxa7 $2 Nb5 $19)) 30. Kd3 {[%emt 0:01:03]} Nxd4 {[%emt 0:01:23]} 31. Kxd4 {[%emt 0:00:03]} Kb6 {[%emt 0:01:53]} 32. Bxd5 {[%emt 0:00:06]} Bc5+ {[%emt 0:03:18]} (32... Ka5 $19 {and Black stays clearly on top.} 33. Kc4 Bf6 34. Bxf7 Rc8+ 35. Kd3 Kxa4) 33. Kc4 $17 {[%emt 0:01:08] a5+ is the strong threat.} a5 {[%emt 0:00:05]} ({Much weaker is} 33... Bxf2 $6 34. Rxb4+ Ka5 35. Rb5+ Kxa4 36. Rb4+ Ka3 37. Rb3+ Ka2 38. Rf3 $11) 34. f3 {[%emt 0:00:51]} f5 {[%emt 0:00:52]} 35. Re1 {[%emt 0:00:04]} Bd6 {[%emt 0:04:02] Weighted Error Value: White=0.34/Black=0.33} 1/2-1/2

[Event "Polish Youth B18 Championship 2023"]
[Site "Jastrzebia Gora"]
[Date "2023.03.19"]
[Round "9.10"]
[White "Ciszewski, Krzysztof"]
[Black "Biesiadecki, Adam"]
[Result "1-0"]
[ECO "E43"]
[WhiteElo "2047"]
[BlackElo "1761"]
[Annotator "TA"]
[PlyCount "43"]
[EventDate "2023.03.11"]
[EventType "swiss"]
[EventCountry "POL"]
[SourceTitle "playchess.com"]
[Source "ChessBase"]
[SourceQuality "1"]
[TimeControl "40/5400+30:1800+30"]

{[%evp 9,43,-4,0,-4,-1,-3,-5,-4,26,18,16,26,43,0,19,-48,134,109,131,126,133,128,213,180,212,192,255,232,452,462,345,233,234,234,239,227]} 1. d4 {[%emt 0:00:12]} Nf6 {[%emt 0:00:03]} 2. c4 {[%emt 0:00:06]} e6 {[%emt 0:00:06]} 3. Nc3 {[%emt 0:00:05]} Bb4 {[%emt 0:00:04]} 4. e3 {[%emt 0:00:06]} b6 {[%emt 0:00:07]} 5. f3 {[%emt 0:00:08]} O-O {[%emt 0:01:44]} 6. e4 {[%emt 0:00:29] E43: Nimzo-Indian: Rubinstein: 4...b6.} d5 {[%emt 0:00:37]} 7. cxd5 {[%emt 0:02:13]} exd5 {[%emt 0:00:08]} 8. e5 {[%emt 0:00:06] The position is equal.} Nfd7 {[%emt 0:00:43]} (8... Nh5 $5 {[%cal Rd8h4]} 9. Nge2 c5 $11) 9. f4 {[%emt 0:02:22]} c5 $1 {[%emt 0:00:31]} 10. a3 $1 {[%emt 0:06:08]} Ba5 {[%emt 0:05:43]} 11. Nf3 {[%emt 0:03:18]} Nc6 {[%emt 0:05:54]} 12. Bb5 {[%emt 0:09:25] [#]} (12. Be3 $11) 12... Bb7 $146 {[%emt 0:06:02]} (12... Nxd4 $1 $15 {keeps the upper hand.} 13. Nxd4 cxd4 14. Qxd4 Nc5) ({Predecessor:} 12... Qc7 13. b4 Nxb4 14. axb4 Bxb4 15. Bd2 Bb7 16. Ne2 Bxd2+ 17. Qxd2 c4 18. Qb4 a5 {½-½ Niemann,P (2113)-Litwak,A (2284) Oberhausen op 2008 (4)}) 13. O-O $36 {[%emt 0:01:20][%mdl 2048] White is in control.} a6 {[%emt 0:09:03]} 14. Bd3 {[%emt 0:05:49][%cal Od3h7] And now Bxh7+! would win. White is more active.} g6 {[%emt 0:03:17]} (14... Nxd4 $2 15. Bxh7+ Kxh7 16. Ng5+ Kg8 17. Qh5 $18) 15. Ne2 {[%emt 0:13:30] f5 would be deadly.} ({Don't do} 15. b4 $6 cxb4 16. Nxd5 Ndxe5 $14) 15... b5 {[%emt 0:02:58] [#]} (15... f5 $16 {keeps fighting.}) 16. b4 $1 $18 {[%emt 0:03:17][%mdl 512]} cxb4 {[%emt 0:01:54]} 17. f5 {[%emt 0:00:13]} Bb6 {[%emt 0:06:03] [#]} (17... bxa3 {is a better defense.} 18. Bxa3 b4) 18. Kh1 $1 {[%emt 0:01:23]} Qe7 $2 {[%emt 0:02:23]} (18... f6 {was called for.}) 19. f6 {[%emt 0:05:27]} Qd8 {[%emt 0:01:08]} 20. Qd2 {[%emt 0:03:43] White wants to mate with Qh6.} Nxf6 {[%emt 0:03:16]} 21. exf6 {[%emt 0:01:07]} Qxf6 {[%emt 0:00:05]} 22. axb4 {[%emt 0:00:30] Weighted Error Value: White=0.13 (very precise) /Black=0.43} 1-0